Workbook

Sheet Aktiva
A1: označ | D1: AKTIVA | H1: řád | I1: Běžné účetní období
A2: a | D2: b | H2: c
I3: 2007 | J3: 2008 | K3: 2009 | L3: 2010 | M3: 2011 | N3: 2012 | O3: 2013 | P3: 2014
D5: AKTIVA CELKEM | H5: 001 | I5: =SUM(I6+I7,I36,I68) -> 167801 | J5: =SUM(J6+J7,J36,J68) -> 200071 | K5: 204444 | L5: 217019 | M5: 212998 | N5: 195075 | O5: 211982 | P5: 250306
A6: A. | D6: Pohledávky za upsaný základní kapitál | H6: 002 | I6: 0 | J6: 0 | K6: 0 | L6: 0 | M6: 0 | N6: 0 | O6: 0 | P6: 0
A7: B. | D7: Dlouhodobý majetek | H7: 003 | I7: =I8+I17+I27 -> 52667 | J7: 53686 | K7: 52018 | L7: 50695 | M7: 48194 | N7: 60964 | O7: 53462 | P7: 68006
A8: B. | B8: I. | D8: Dlouhodobý nehmotný majetek | H8: 004 | I8: =SUM(I9:I16) -> 795 | J8: 583 | K8: 240 | L8: 224 | M8: 407 | N8: 778 | O8: 888 | P8: 700
A9: B. | B9: I. | C9: 1 | D9: Zřizovací výdaje | H9: 005 | I9: 0 | J9: 0 | K9: 0 | L9: 0 | M9: 0 | N9: 0 | O9: 0 | P9: 0
C10: 2 | D10: Nehmotné výsledky výzkumu a vývoje | H10: 006 | I10: 0 | J10: 0 | K10: 0 | L10: 0 | M10: 0 | N10: 0 | O10: 0 | P10: 0
C11: 3 | D11: Software | H11: 007 | I11: 795 | J11: 583 | K11: 240 | L11: 224 | M11: 407 | N11: 778 | O11: 888 | P11: 700
C12: 4 | D12: Ocenitelná práva | H12: 008 | I12: 0 | J12: 0 | K12: 0 | L12: 0 | M12: 0 | N12: 0 | O12: 0 | P12: 0
C13: 5 | D13: Goodwill | H13: 009 | I13: 0 | J13: 0 | K13: 0 | L13: 0 | M13: 0 | N13: 0 | O13: 0 | P13: 0
C14: 6 | D14: Jiný dlouhodobý nehmotný majetek | H14: 010 | I14: 0 | J14: 0 | K14: 0 | L14: 0 | M14: 0 | N14: 0 | O14: 0 | P14: 0
C15: 7 | D15: Nedokončený dlouhodobý nehmotný majetek | H15: 011 | I15: 0 | J15: 0 | K15: 0 | L15: 0 | M15: 0 | N15: 0 | O15: 0 | P15: 0
C16: 8 | D16: Poskytnuté zálohy na dlouhodobý nehmotný majetek | H16: 012 | I16: 0 | J16: 0 | K16: 0 | L16: 0 | M16: 0 | N16: 0 | O16: 0 | P16: 0
A17: B. | B17: II. | D17: Dlouhodobý hmotný majetek | H17: 013 | I17: =SUM(I18:I26) -> 50226 | J17: 51457 | K17: 50132 | L17: 48825 | M17: 47476 | N17: 60186 | O17: 52574 | P17: 67306
A18: B. | B18: II. | C18: 1 | D18: Pozemky | H18: 014 | I18: 1808 | J18: 1746 | K18: 1653 | L18: 2631 | M18: 2562 | N18: 1613 | O18: 1247 | P18: 1262
C19: 2 | D19: Stavby | H19: 015 | I19: 43638 | J19: 42012 | K19: 39916 | L19: 40478 | M19: 39441 | N19: 52729 | O19: 45533 | P19: 58302
C20: 3 | D20: Samostatné hmotné movité věci a soubory hmotných movitých věcí | H20: 016 | I20: 3185 | J20: 7294 | K20: 6710 | L20: 5409 | M20: 5173 | N20: 5368 | O20: 5311 | P20: 4517
C21: 4 | D21: Pěstitelské celky trvalých porostů | H21: 017 | I21: 0 | J21: 0 | K21: 0 | L21: 0 | M21: 0 | N21: 0 | O21: 0 | P21: 0
C22: 5 | D22: Dospělá zvířata a jejich skupiny | H22: 018 | I22: 0 | J22: 0 | K22: 0 | L22: 0 | M22: 0 | N22: 0 | O22: 0 | P22: 0
C23: 6 | D23: Jiný dlouhodobý hmotný majetek | H23: 019 | I23: 31 | J23: 24 | K23: 15 | L23: 7 | M23: 0 | N23: 0 | O23: 0 | P23: 0
C24: 7 | D24: Nedokončený dlouhodobý hmotný majetek | H24: 020 | I24: 1564 | J24: 381 | K24: 1838 | L24: 300 | M24: 300 | N24: 476 | O24: 483 | P24: 1345
C25: 8 | D25: Poskytnuté zálohy na dlouhodobý hmotný majetek | H25: 021 | I25: 0 | J25: 0 | K25: 0 | L25: 0 | M25: 0 | N25: 0 | O25: 0 | P25: 1880
C26: 9 | D26: Oceňovací rozdíl k nabytému majetku | H26: 022 | I26: 0 | J26: 0 | K26: 0 | L26: 0 | M26: 0 | N26: 0 | O26: 0 | P26: 0
A27: B. | B27: III. | D27: Dlouhodobý finanční majetek | H27: 023 | I27: =SUM(I28:I34) -> 1646 | J27: 1646 | K27: 1646 | L27: 1646 | M27: 311 | N27: 0 | O27: 0 | P27: 0
A28: B. | B28: III. | C28: 1 | D28: Podíly - ovládaná osoba | H28: 024 | I28: 1646 | J28: 1646 | K28: 1646 | L28: 1646 | M28: 311 | N28: 0 | O28: 0 | P28: 0
C29: 2 | D29: Podíly v účetních jednotkách pod podstatným vlivem | H29: 025 | I29: 0 | J29: 0 | K29: 0 | L29: 0 | M29: 0 | N29: 0 | O29: 0 | P29: 0
C30: 3 | D30: Ostatní dlouhodobé cenné papíry a podíly | H30: 026 | I30: 0 | J30: 0 | K30: 0 | L30: 0 | M30: 0 | N30: 0 | O30: 0 | P30: 0
C31: 4 | D31: Zápůjčky a úvěry - ovládaná nebo ovládající osoba, podstatný vliv | H31: 027 | I31: 0 | J31: 0 | K31: 0 | L31: 0 | M31: 0 | N31: 0 | O31: 0 | P31: 0
C32: 5 | D32: Jiný dlouhodobý finanční majetek | H32: 028 | I32: 0 | J32: 0 | K32: 0 | L32: 0 | M32: 0 | N32: 0 | O32: 0 | P32: 0
C33: 6 | D33: Pořizovaný dlouhodobý finanční majetek | H33: 029 | I33: 0 | J33: 0 | K33: 0 | L33: 0 | M33: 0 | N33: 0 | O33: 0 | P33: 0
C34: 7 | D34: Poskytnuté zálohy na dlouhodobý finanční majetek | H34: 030 | I34: 0 | J34: 0 | K34: 0 | L34: 0 | M34: 0 | N34: 0 | O34: 0 | P34: 0
A36: C. | D36: Oběžná aktiva | H36: 031 | I36: =I37+I44+I53+I63 -> 114331 | J36: 145362 | K36: 151411 | L36: 165530 | M36: 164340 | N36: 133686 | O36: 158232 | P36: 181533
A37: C. | B37: I. | D37: Zásoby | H37: 032 | I37: =SUM(I38:I43) -> 17415 | J37: 22616 | K37: 25721 | L37: 27946 | M37: 45070 | N37: 23813 | O37: 22937 | P37: 47001
A38: C. | B38: I. | C38: 1 | D38: Materiál | H38: 033 | I38: 0 | J38: 4375 | K38: 4589 | L38: 4238 | M38: 4474 | N38: 6408 | O38: 6175 | P38: 5726
C39: 2 | D39: Nedokončená výroba a polotovary | H39: 034 | I39: 758 | J39: 2698 | K39: 2560 | L39: 7018 | M39: 25071 | N39: 2993 | O39: 3794 | P39: 27926
C40: 3 | D40: Výrobky | H40: 035 | I40: 0 | J40: 0 | K40: 0 | L40: 0 | M40: 0 | N40: 0 | O40: 0 | P40: 0
C41: 4 | D41: Mladá a ostatní zvířata a jejich skupiny | H41: 036 | I41: 0 | J41: 0 | K41: 0 | L41: 0 | M41: 0 | N41: 0 | O41: 0 | P41: 0
C42: 5 | D42: Zboží | H42: 037 | I42: 16657 | J42: 15543 | K42: 18572 | L42: 16690 | M42: 15525 | N42: 14412 | O42: 12968 | P42: 13349
C43: 6 | D43: Poskytnuté zálohy na zásoby | H43: 038 | I43: 0 | J43: 0 | K43: 0 | L43: 0 | M43: 0 | N43: 0 | O43: 0 | P43: 0
A44: C. | B44: II. | D44: Dlouhodobé pohledávky | H44: 039 | I44: =SUM(I45:I52) -> 3944 | J44: 4110 | K44: 5596 | L44: 6631 | M44: 7291 | N44: 6786 | O44: 6270 | P44: 4811
A45: C. | B45: II. | C45: 1 | D45: Pohledávky z obchodních vztahů | H45: 040 | I45: 3944 | J45: 4110 | K45: 5596 | L45: 6131 | M45: 6791 | N45: 6226 | O45: 5770 | P45: 4311
C46: 2 | D46: Pohledávky - ovládaná nebo ovládající osoba | H46: 041 | I46: 0 | J46: 0 | K46: 0 | L46: 0 | M46: 0 | N46: 0 | O46: 0 | P46: 0
C47: 3 | D47: Pohledávky - podstatný vliv | H47: 042 | I47: 0 | J47: 0 | K47: 0 | L47: 0 | M47: 0 | N47: 0 | O47: 0 | P47: 0
C48: 4 | D48: Pohledávky za společníky | H48: 043 | I48: 0 | J48: 0 | K48: 0 | L48: 0 | M48: 0 | N48: 0 | O48: 0 | P48: 0
C49: 5 | D49: Dlouhodobé poskytnuté zálohy | H49: 044 | I49: 0 | J49: 0 | K49: 0 | L49: 0 | M49: 0 | N49: 0 | O49: 0 | P49: 0
C50: 6 | D50: Dohadné účty aktivní | H50: 045 | I50: 0 | J50: 0 | K50: 0 | L50: 0 | M50: 0 | N50: 0 | O50: 0 | P50: 0
C51: 7 | D51: Jiné pohledávky | H51: 046 | I51: 0 | J51: 0 | K51: 0 | L51: 500 | M51: 500 | N51: 560 | O51: 500 | P51: 500
C52: 8 | D52: Odložená daňová pohledávka | H52: 047 | I52: 0 | J52: 0 | K52: 0 | L52: 0 | M52: 0 | N52: 0 | O52: 0 | P52: 0
A53: C. | B53: III. | D53: Krátkodobé pohledávky | H53: 048 | I53: =SUM(I54:I62) -> 92148 | J53: 114773 | K53: 119355 | L53: 129287 | M53: 109438 | N53: 100045 | O53: 113029 | P53: 119452
A54: C. | B54: III. | C54: 1 | D54: Pohledávky z obchodních vztahů | H54: 049 | I54: 49147 | J54: 67095 | K54: 44579 | L54: 51700 | M54: 34394 | N54: 22617 | O54: 33297 | P54: 23574
C55: 2 | D55: Pohledávky - ovládaná nebo ovládající osoba | H55: 050 | I55: 0 | J55: 0 | K55: 0 | L55: 0 | M55: 0 | N55: 0 | O55: 0 | P55: 0
C56: 3 | D56: Pohledávky - podstatný vliv | H56: 051 | I56: 0 | J56: 0 | K56: 0 | L56: 0 | M56: 0 | N56: 0 | O56: 0 | P56: 0
C57: 4 | D57: Pohledávky za společníky | H57: 052 | I57: 0 | J57: 0 | K57: 0 | L57: 0 | M57: 0 | N57: 0 | O57: 0 | P57: 0
C58: 5 | D58: Sociální zabezpečení a zdravotní pojištění | H58: 053 | I58: 0 | J58: 0 | K58: 0 | L58: 0 | M58: 0 | N58: 0 | O58: 0 | P58: 0
C59: 6 | D59: Stát - daňové pohledávky | H59: 054 | I59: 1371 | J59: 1192 | K59: 5 | L59: 14 | M59: 247 | N59: 2559 | O59: 3506 | P59: 0
C60: 7 | D60: Krátkodobé poskytnuté zálohy | H60: 055 | I60: 9452 | J60: 10608 | K60: 7717 | L60: 6925 | M60: 7116 | N60: 2583 | O60: 1679 | P60: 5169
C61: 8 | D61: Dohadné účty aktivní | H61: 056 | I61: 31563 | J61: 35843 | K61: 64765 | L61: 69358 | M61: 66561 | N61: 70787 | O61: 71817 | P61: 85661
C62: 9 | D62: Jiné pohledávky | H62: 057 | I62: 615 | J62: 35 | K62: 2289 | L62: 1290 | M62: 1120 | N62: 1499 | O62: 2730 | P62: 5048
A63: C. | B63: IV. | D63: Krátkodobý finanční majetek | H63: 058 | I63: =I64+I65+I67+I66 -> 824 | J63: 3863 | K63: 739 | L63: 1666 | M63: 2541 | N63: 3042 | O63: 15996 | P63: 10269
A64: C. | B64: IV. | C64: 1 | D64: Peníze | H64: 059 | I64: 211 | J64: 63 | K64: 174 | L64: 74 | M64: 185 | N64: 42 | O64: 165 | P64: 164
C65: 2 | D65: Účty v bankách | H65: 060 | I65: 613 | J65: 3800 | K65: 565 | L65: 1592 | M65: 2356 | N65: 3000 | O65: 15831 | P65: 10105
C66: 3 | D66: Krátkodobé cenné papíry a podíly | H66: 061 | I66: 0 | J66: 0 | K66: =I66+J66 -> 0 | L66: 0 | M66: 0 | N66: 0 | O66: 0 | P66: 0
C67: 4 | D67: Pořizovaný krátkodobý finanční majetek | H67: 062 | I67: 0 | J67: 0 | K67: =I67+J67 -> 0 | L67: 0 | M67: 0 | N67: 0 | O67: 0 | P67: 0
A68: D. | B68: I. | D68: Časové rozlišení | H68: 063 | I68: =I69+I71+I70 -> 803 | J68: 1023 | K68: 1015 | L68: =L69+L71+L70 -> 794 | M68: 464 | N68: 425 | O68: 288 | P68: 767
A69: D. | B69: I. | C69: 1 | D69: Náklady příštích období | H69: 064 | I69: 803 | J69: 1023 | K69: 953 | L69: 587 | M69: 422 | N69: 260 | O69: 199 | P69: 384
C70: 2 | D70: Komplexní náklady příštích období | H70: 065 | I70: 0 | J70: 0 | K70: 0 | L70: 0 | M70: 0 | N70: 0 | O70: 0 | P70: 0
C71: 3 | D71: Příjmy příštích období | H71: 066 | I71: 0 | J71: 0 | K71: 62 | L71: 207 | M71: 42 | N71: 165 | O71: 89 | P71: 383

Sheet Pasiva
A1: označ | D1: PASIVA | E1: řád | F1: Běžné účetní období
A2: a | D2: b | E2: c
F3: 2007 | G3: 2008 | H3: 2009 | I3: 2010 | J3: 2011 | K3: 2012 | L3: 2013 | M3: 2014
D4: PASIVA CELKEM | E4: 067 | F4: =SUM(F5+F27+F61) -> 167801 | G4: =SUM(G5+G27+G61) -> 200071 | H4: 204444 | I4: 217019 | J4: 212998 | K4: 195075 | L4: 211982 | M4: 250306
A5: A. | D5: Vlastní kapitál | E5: 068 | F5: =F6+F10+F17+F20+F24-F26 -> 43148 | G5: 44585 | H5: 46302 | I5: 49819 | J5: =J6+J10+J17+J20+J24-J26 -> 63375 | K5: 64353 | L5: 65216 | M5: 69094
A6: A. | B6: I. | D6: Základní kapitál | E6: 069 | F6: =F7+F9+F8 -> 46300 | G6: 46300 | H6: 46300 | I6: 46300 | J6: 46300 | K6: 46300 | L6: 46300 | M6: 46300
C7: 1 | D7: Základní kapitál | E7: 070 | F7: 46300 | G7: 46300 | H7: 46300 | I7: 46300 | J7: 46300 | K7: 46300 | L7: 46300 | M7: 46300
C8: 2 | D8: Vlastní akcie a vlastní obchodní podíly (-) | E8: 071 | F8: 0 | G8: 0 | H8: 0 | I8: 0 | J8: 0 | K8: 0 | L8: 0 | M8: 0
C9: 3 | D9: Změny základního kapitálu | E9: 072 | F9: 0 | G9: 0 | H9: 0 | I9: 0 | J9: 0 | K9: 0 | L9: 0 | M9: 0
A10: A. | B10: II. | D10: Kapitálové fondy | E10: 073 | F10: =SUM(F11:F16) -> 0 | G10: 0 | H10: 0 | I10: 0 | J10: 8115 | K10: 6179 | L10: 3908 | M10: 3770
A11: A. | B11: II. | C11: 1 | D11: Ážio | E11: 074 | F11: 0 | G11: 0 | H11: 0 | I11: 0 | J11: 0 | K11: 0 | L11: 0 | M11: 0
C12: 2 | D12: Ostatní kapitálové fondy | E12: 075 | F12: 0 | G12: 0 | H12: 0 | I12: 0 | J12: 9450 | K12: 7825 | L12: 5554 | M12: 5554
C13: 3 | D13: Oceňovací rozdíly z přecenění majetku a závazků | E13: 076 | F13: 0 | G13: 0 | H13: 0 | I13: 0 | J13: -1335 | K13: -1646 | L13: -1646 | M13: -1784
C14: 4 | D14: Oceňovací rozdíly z přecenění při přeměnách obchodních korporací | E14: 077 | F14: 0 | G14: 0 | H14: 0 | I14: 0 | J14: 0 | K14: 0 | L14: 0 | M14: 0
C15: 5 | D15: Rozdíly z přeměn obchodních korporací | E15: 078 | F15: 0 | G15: 0 | H15: 0 | I15: 0 | J15: 0 | K15: 0 | L15: 0 | M15: 0
C16: 6 | D16: Rozdíly z ocenění při přeměnách obchodních korporací | E16: 079 | F16: 0 | G16: 0 | H16: 0 | I16: 0 | J16: 0 | K16: 0 | L16: 0 | M16: 0
A17: A. | B17: III. | D17: Fondy ze zisku | E17: 080 | F17: =F18+F19 -> 322 | G17: =G18+G19 -> 398 | H17: 469 | I17: 555 | J17: 731 | K17: 1003 | L17: 1149 | M17: 1149
A18: A. | B18: III. | C18: 1 | D18: Rezervní fond | E18: 081 | F18: 322 | G18: 398 | H18: 469 | I18: 555 | J18: 731 | K18: 1003 | L18: 1149 | M18: 1149
C19: 2 | D19: Statutární a ostatní fondy | E19: 082 | F19: 0 | G19: 0 | H19: 0 | I19: 0 | J19: 0 | K19: 0 | L19: 0 | M19: 0
A20: A. | B20: IV. | D20: Výsledek hospodáření minulých let | E20: 083 | F20: =F21+F22+F23 -> -4982 | G20: -3549 | H20: -2185 | I20: -554 | J20: 2788 | K20: 7957 | L20: 10726 | M20: 13859
A21: A. | B21: IV. | C21: 1 | D21: Nerozdělený zisk minulých let | E21: 084 | F21: 0 | G21: 0 | H21: 0 | I21: 0 | J21: 2788 | K21: 7957 | L21: 10726 | M21: 13859
C22: 2 | D22: Neuhrazená ztráta minulých let | E22: 085 | F22: -4982 | G22: -3549 | H22: -2185 | I22: -554 | J22: 0 | K22: 0 | L22: 0 | M22: 0
C23: 3 | D23: Jiný výsledek hospodaření minulých let | E23: 086 | F23: 0 | G23: 0 | H23: 0 | I23: 0 | J23: 0 | K23: 0 | L23: 0 | M23: 0
A24: A. | B24: V. | C24: 1 | D24: Výsledek hospodaření běžného účetního období (+/-) | E24: 087 | F24: =Aktiva!I5-F6-F10-F17-F20-F27-F61 -> 1508 | G24: =Aktiva!J5-G6-G10-G17-G20-G27-G61 -> 1436 | H24: =Aktiva!K5-H6-H10-H17-H20-H27-H61 -> 1718 | I24: =Aktiva!L5-I6-I10-I17-I20-I27-I61 -> 3518 | J24: =Aktiva!M5-J6-J10-J17-J20-J27-J61 -> 5441 | K24: =Aktiva!N5-K6-K10-K17-K20-K27-K61 -> 2914 | L24: =Aktiva!O5-L6-L10-L17-L20-L27-L61 -> 3133 | M24: =Aktiva!P5-M6-M10-M17-M20-M27-M61 -> 4016
C26: 2 | D26: Rozhodnuto o zálohách na výplatu podílu na zisku (-) | E26: 088 | F26: 0 | G26: 0 | H26: 0 | I26: 0 | J26: 0 | K26: 0 | L26: 0 | M26: 0
A27: B. | D27: Cizí zdroje | E27: 089 | F27: =SUM(F28+F33+F45+F57) -> 114874 | G27: =SUM(G28+G33+G45+G57) -> 142817 | H27: 146049 | I27: 159781 | J27: 143735 | K27: 128752 | L27: 146404 | M27: 181151
A28: B. | B28: I. | D28: Rezervy | E28: 090 | F28: =SUM(F29:F32) -> 0 | G28: 0 | H28: 0 | I28: 0 | J28: 0 | K28: 0 | L28: 0 | M28: 0
A29: B. | B29: I. | C29: 1 | D29: Rezervy podle zvláštních právních předpisů | E29: 091 | F29: 0 | G29: 0 | H29: 0 | I29: 0 | J29: 0 | K29: 0 | L29: 0 | M29: 0
C30: 2 | D30: Rezerva na důchody a podobné závazky | E30: 092 | F30: 0 | G30: 0 | H30: 0 | I30: 0 | J30: 0 | K30: 0 | L30: 0 | M30: 0
C31: 3 | D31: Rezerva na daň z příjmů | E31: 093 | F31: 0 | G31: 0 | H31: 0 | I31: 0 | J31: 0 | K31: 0 | L31: 0 | M31: 0
C32: 4 | D32: Ostatní rezervy | E32: 094 | F32: 0 | G32: 0 | H32: 0 | I32: 0 | J32: 0 | K32: 0 | L32: 0 | M32: 0
A33: B. | B33: II. | D33: Dlouhodobé závazky | E33: 095 | F33: =SUM(F34:F43) -> 1608 | G33: 3431 | H33: 2763 | I33: 2894 | J33: 4126 | K33: 4760 | L33: 2747 | M33: 2527
A34: B. | B34: II. | C34: 1 | D34: Závazky z obchodních vztahů | E34: 096 | F34: 1387 | G34: 2913 | H34: 2228 | I34: 2154 | J34: 3086 | K34: 3683 | L34: 1712 | M34: 1385
C35: 2 | D35: Závazky - ovládaná nebo ovládající osoba | E35: 097 | F35: 0 | G35: 0 | H35: 0 | I35: 0 | J35: 0 | K35: 0 | L35: 0 | M35: 0
C36: 3 | D36: Závazky - podstatný vliv | E36: 098 | F36: 0 | G36: 0 | H36: 0 | I36: 0 | J36: 0 | K36: 0 | L36: 0 | M36: 0
C37: 4 | D37: Závazky ke společníkům | E37: 099 | F37: 0 | G37: 0 | H37: 0 | I37: 0 | J37: 0 | K37: 0 | L37: 0 | M37: 0
C38: 5 | D38: Dlouhodobé přijaté zálohy | E38: 100 | F38: 0 | G38: 0 | H38: 0 | I38: 0 | J38: 0 | K38: 0 | L38: 0 | M38: 0
C39: 6 | D39: Vydané dluhopisy | E39: 101 | F39: 0 | G39: 0 | H39: 0 | I39: 0 | J39: 0 | K39: 0 | L39: 0 | M39: 0
C40: 7 | D40: Dlouhodobé směnky k úhradě | E40: 102 | F40: 0 | G40: 0 | H40: 0 | I40: 0 | J40: 0 | K40: 0 | L40: 0 | M40: 0
C41: 8 | D41: Dohadné účty pasívní | E41: 103 | F41: 0 | G41: 0 | H41: 0 | I41: 0 | J41: 0 | K41: 0 | L41: 0 | M41: 0
C42: 9 | D42: Jiné závazky | E42: 104 | F42: 0 | G42: 0 | H42: 0 | I42: 0 | J42: 0 | K42: 0 | L42: 0 | M42: 0
C43: 10 | D43: Odložený daňový závazek | E43: 105 | F43: 221 | G43: 518 | H43: 535 | I43: 740 | J43: 1040 | K43: 1077 | L43: 1035 | M43: 1142
A45: B. | B45: III. | D45: Krátkodobé závazky | E45: 106 | F45: =SUM(F46:F56) -> 92364 | G45: 119492 | H45: 127723 | I45: 134441 | J45: 119324 | K45: 95123 | L45: 120119 | M45: 147692
A46: B. | B46: III. | C46: 1 | D46: Závazky z obchodních vztahů | E46: 107 | F46: 45051 | G46: 67449 | H46: 49063 | I46: 55411 | J46: 24454 | K46: 19856 | L46: 36479 | M46: 43106
C47: 2 | D47: Závazky - ovládaná nebo ovládající osoba | E47: 108 | F47: 0 | G47: 0 | H47: 0 | I47: 0 | J47: 0 | K47: 0 | L47: 0 | M47: 0
C48: 3 | D48: Závazky - podstatný vliv | E48: 109 | F48: 0 | G48: 0 | H48: 0 | I48: 0 | J48: 0 | K48: 0 | L48: 0 | M48: 0
C49: 4 | D49: Závazky ke společníkům | E49: 110 | F49: 0 | G49: 0 | H49: 0 | I49: 0 | J49: 0 | K49: 0 | L49: 0 | M49: 0
C50: 5 | D50: Závazky k zaměstnancům | E50: 111 | F50: 721 | G50: 972 | H50: 964 | I50: 946 | J50: 915 | K50: 922 | L50: 962 | M50: 1016
C51: 6 | D51: Závazky ze sociálního zabezpečení a zdravotního pojištění | E51: 112 | F51: 364 | G51: 579 | H51: 573 | I51: 552 | J51: 521 | K51: 532 | L51: 551 | M51: 590
C52: 7 | D52: Stát - daňové závazky a dotace | E52: 113 | F52: 124 | G52: 443 | H52: 832 | I52: 1871 | J52: 846 | K52: 426 | L52: 52 | M52: 221
C53: 8 | D53: Kratkodobé přijaté zálohy | E53: 114 | F53: 43778 | G53: 46153 | H53: 71922 | I53: 69472 | J53: 87591 | K53: 69498 | L53: 77110 | M53: 92930
C54: 9 | D54: Vydané dluhopisy | E54: 115 | F54: 0 | G54: 0 | H54: 0 | I54: 0 | J54: 0 | K54: 0 | L54: 0 | M54: 0
C55: 10 | D55: Dohadné účty pasivní | E55: 116 | F55: 576 | G55: 454 | H55: 935 | I55: 2755 | J55: 1563 | K55: 451 | L55: 313 | M55: 5138
C56: 11 | D56: Jiné závazky | E56: 117 | F56: 1750 | G56: 3442 | H56: 3434 | I56: 3434 | J56: 3434 | K56: 3438 | L56: 4652 | M56: 4691
A57: B. | B57: IV. | D57: Bankovní úvěry a výpomoci | E57: 118 | F57: =F58+F59+F60 -> 20902 | G57: 19894 | H57: 15563 | I57: 22446 | J57: 20285 | K57: 28869 | L57: 23538 | M57: 30932
A58: B. | B58: IV. | C58: 1 | D58: Bankovní úvěry dlouhodobé | E58: 119 | F58: 16049 | G58: 13428 | H58: 10151 | I58: 8097 | J58: 5337 | K58: 6956 | L58: 7341 | M58: 14642
C59: 2 | D59: Krátkodobé bankovní úvěry | E59: 120 | F59: 2621 | G59: 2621 | H59: 2621 | I59: 2621 | J59: 5021 | K59: 21294 | L59: 15574 | M59: 15859
C60: 3 | D60: Krátkodobé finanční výpomoci | E60: 121 | F60: 2232 | G60: 3845 | H60: 2791 | I60: 11728 | J60: 9927 | K60: 619 | L60: 623 | M60: 431
A61: C. | B61: I. | D61: Časové rozlišení | E61: 122 | F61: =F62+F63 -> 9779 | G61: 12669 | H61: 12093 | I61: 7419 | J61: 5888 | K61: 1970 | L61: 362 | M61: 61
A62: C. | B62: I. | C62: 1 | D62: Výdaje příštích období | E62: 123 | F62: 9779 | G62: 12669 | H62: 12093 | I62: 7419 | J62: 5888 | K62: 1970 | L62: 362 | M62: 59
C63: 2 | D63: Výnosy příštích období | E63: 124 | F63: 0 | G63: 0 | H63: 0 | I63: 0 | J63: 0 | K63: 0 | L63: 0 | M63: 2

Sheet Výkaz zisků a ztrát
A1: Označení | D1: TEXT | J1: Číslo | K1: Skutečnost v účetním období
A2: a | D2: b | J2: řádku
J3: c | K3: 2007 | L3: 2008 | M3: 2009 | N3: 2010 | O3: 2011 | P3: 2012 | Q3: 2013 | R3: 2014
A4: I. | D4: Tržby za prodej zboží | J4: 01 | K4: 122668 | L4: 132612 | M4: 176212 | N4: 128204 | O4: 129831 | P4: 123837 | Q4: 141429 | R4: 163426
A5: A. | D5: Náklady vynaložené na prodané zboží | J5: 02 | K5: 100601 | L5: 111336 | M5: 140201 | N5: 100417 | O5: 95994 | P5: 89291 | Q5: 103968 | R5: 125318
A6: + | D6: Obchodní marže | J6: 03 | K6: =K4-K5 -> 22067 | L6: =L4-L5 -> 21276 | M6: 36011 | N6: 27787 | O6: 33837 | P6: 34546 | Q6: 37461 | R6: 38108
A7: II. | D7: Výkony | J7: 04 | K7: =SUM(K8:K10) -> 102192 | L7: =SUM(L8:L10) -> 143638 | M7: 120924 | N7: 102480 | O7: =SUM(O8:O10) -> 122495 | P7: 73223 | Q7: 76584 | R7: 92913
B8: II. | C8: 1 | D8: Tržby za prodej vlastních výrobků a služeb | J8: 05 | K8: 102080 | L8: 141658 | M8: 120843 | N8: 98323 | O8: 103843 | P8: 47291 | Q8: 75562 | R8: 68665
C9: 2 | D9: Změna stavu zásob vlastní činnosti | J9: 06 | K9: 110 | L9: 1980 | M9: 72 | N9: 4117 | O9: 18650 | P9: -22078 | Q9: 1018 | R9: 24230
C10: 3 | D10: Aktivace | J10: 07 | K10: 2 | L10: 0 | M10: 9 | N10: 40 | O10: 2 | P10: 48010 | Q10: 4 | R10: 18
A11: B. | D11: Výkonová spotřeba | J11: 08 | K11: =K12+K13 -> 102434 | L11: 138017 | M11: 121929 | N11: 98912 | O11: 121797 | P11: 77986 | Q11: 81631 | R11: 98435
A12: B. | C12: 1 | D12: Spotřeba materiálu a energie | J12: 09 | K12: 24289 | L12: 39214 | M12: 31141 | N12: 31298 | O12: 27312 | P12: 28433 | Q12: 26141 | R12: 38818
A13: B. | C13: 2 | D13: Služby | J13: 10 | K13: 78145 | L13: 98803 | M13: 90788 | N13: 67614 | O13: 94485 | P13: 49553 | Q13: 55490 | R13: 59617
A14: + | D14: Přidaná hodnota | J14: 11 | K14: =K6+K7-K11 -> 21825 | L14: 26897 | M14: 35006 | N14: 31355 | O14: 34535 | P14: 29783 | Q14: 32414 | R14: 32586
A15: C. | D15: Osobní náklady | J15: 12 | K15: =K16+K17+K18+K19 -> 14923 | L15: 19361 | M15: 24450 | N15: 20630 | O15: 20536 | P15: 20851 | Q15: 20973 | R15: 22313
A16: C. | C16: 1 | D16: Mzdové náklady | J16: 13 | K16: 10825 | L16: 14047 | M16: 17972 | N16: 15086 | O16: 14955 | P16: 15203 | Q16: 15185 | R16: 16185
A17: C. | C17: 2 | D17: Odměny členům orgánů společnosti a družstva | J17: 14 | K17: 0 | L17: 0 | M17: 0 | N17: 0 | O17: 0 | P17: 0 | Q17: 0 | R17: 0
A18: C. | C18: 3 | D18: Náklady na sociální zabezpečení a zdravotní pojištění | J18: 15 | K18: 3745 | L18: 4872 | M18: 5880 | N18: 5011 | O18: 5026 | P18: 5108 | Q18: 5110 | R18: 5442
A19: C. | C19: 4 | D19: Sociální náklady | J19: 16 | K19: 353 | L19: 442 | M19: 598 | N19: 533 | O19: 555 | P19: 540 | Q19: 678 | R19: 686
A20: D. | D20: Daně a poplatky | J20: 17 | K20: 134 | L20: 324 | M20: 295 | N20: 241 | O20: 266 | P20: 343 | Q20: 445 | R20: 239
A21: E. | D21: Odpisy dlouhodobého nehmotného a hmotného majetku | J21: 18 | K21: 2750 | L21: 3296 | M21: 5180 | N21: 4653 | O21: 4328 | P21: 4444 | Q21: 4713 | R21: 5179
A22: III. | D22: Tržby z prodeje dlouhodobého majetku a materiálu | J22: 19 | K22: =K23+K24 -> 678 | L22: 3971 | M22: 4622 | N22: 5425 | O22: 3466 | P22: 43514 | Q22: 12620 | R22: 816
B23: III. | C23: 1 | D23: Tržby z prodeje dlouhodobého majetku | J23: 20 | K23: 678 | L23: 3038 | M23: 2252 | N23: 1037 | O23: 1242 | P23: 42674 | Q23: 10831 | R23: 0
C24: 2 | D24: Tržby z prodeje materiálu | J24: 21 | K24: 0 | L24: 933 | M24: 2370 | N24: 4388 | O24: 2224 | P24: 840 | Q24: 1789 | R24: 816
A25: F. | D25: Zůstatková cena prodaného dlouhodobého majetku a materiálu | J25: 22 | K25: =K26+K27 -> 178 | L25: 2559 | M25: 3163 | N25: 4487 | O25: 2183 | P25: 39807 | Q25: 11504 | R25: 612
A26: F. | C26: 1 | D26: Zůstatková cena prodaného dlouhodobého majetku | J26: 23 | K26: 178 | L26: 1681 | M26: 889 | N26: 212 | O26: 69 | P26: 39068 | Q26: 9775 | R26: 0
A27: F. | C27: 2 | D27: Prodaný materiál | J27: 24 | K27: 0 | L27: 878 | M27: 2274 | N27: 4275 | O27: 2114 | P27: 739 | Q27: 1729 | R27: 612
A28: G. | D28: Změna stavu rezerv a opravných položek v provozní oblasti a komplexních nákladů příštích období | J28: 25 | K28: 337 | L28: 131 | M28: 1601 | N28: 719 | O28: 832 | P28: 1104 | Q28: 1306 | R28: 371
A29: IV. | D29: Ostatní provozní výnosy | J29: 26 | K29: 380 | L29: 567 | M29: 790 | N29: 1212 | O29: 640 | P29: 812 | Q29: 523 | R29: 191
A30: H. | D30: Ostatní provozní náklady | J30: 27 | K30: 1223 | L30: 1709 | M30: 1619 | N30: 1163 | O30: 1249 | P30: 2150 | Q30: 2075 | R30: 1498
A31: V. | D31: Převod provozních výnosů | J31: 28 | K31: 187 | L31: 218 | M31: 251 | N31: 116 | O31: 193 | P31: 280 | Q31: 296 | R31: 274
A32: I. | D32: Převod provozních nákladů | J32: 29 | K32: 187 | L32: 218 | M32: 251 | N32: 116 | O32: 193 | P32: 280 | Q32: 296 | R32: 274
A33: * | D33: Provozní výsledek hospodaření | J33: 30 | K33: =K14-K15-K20-K21+K22-K25-K28+K29-K30-K31+K32 -> 3338 | L33: 4055 | M33: 4110 | N33: 6099 | O33: 9247 | P33: 5410 | Q33: 4541 | R33: 3381
A36: VI | D36: Tržby z prodeje cenných papírů a podílů | J36: 31 | K36: 0 | L36: 0 | M36: 0 | N36: 0 | O36: 0 | P36: 0 | Q36: 0 | R36: 0
A37: J. | D37: Prodané cenné papíry a podíly | J37: 32 | K37: 0 | L37: 0 | M37: 0 | N37: 0 | O37: 0 | P37: 0 | Q37: 0 | R37: 0
B38: VII. | D38: Výnosy z dlouhodobého finančního majetku | J38: 33 | K38: =K39+K40+K41 -> 0 | L38: 0 | M38: 0 | N38: 0 | O38: 0 | P38: 0 | Q38: 0 | R38: 0
B39: VII. | C39: 1 | D39: Výnosy z podílů v ovládaných osobách a v účetních jednotkách pod podstatným vlivem | J39: 34 | K39: 0 | L39: 0 | M39: 0 | N39: 0 | O39: 0 | P39: 0 | Q39: 0 | R39: 0
B40: VII. | C40: 2 | D40: Výnosy z ostatních dlouhodobých cenných papírů a podílů | J40: 35 | K40: 0 | L40: 0 | M40: 0 | N40: 0 | O40: 0 | P40: 0 | Q40: 0 | R40: 0
B41: VII. | C41: 3 | D41: Výnosy z ostatního dlouhodobého finančního majetku | J41: 36 | K41: 0 | L41: 0 | M41: 0 | N41: 0 | O41: 0 | P41: 0 | Q41: 0 | R41: 0
B42: VIII. | D42: Výnosy z krátkodobého finančního majetku | J42: 37 | K42: 0 | L42: 0 | M42: 0 | N42: 0 | O42: 0 | P42: 0 | Q42: 0 | R42: 0
A43: K. | D43: Náklady z finančního majetku | J43: 38 | K43: 0 | L43: 0 | M43: 0 | N43: 0 | O43: 0 | P43: 0 | Q43: 0 | R43: 0
B44: IX. | D44: Výnosy z přecenění cenných papírů a derivátů | J44: 39 | K44: 0 | L44: 0 | M44: 0 | N44: 0 | O44: 0 | P44: 0 | Q44: 0 | R44: 0
A45: L. | D45: Náklady z přecenění cenných papírů a derivátů | J45: 40 | K45: 0 | L45: 0 | M45: 0 | N45: 0 | O45: 0 | P45: 0 | Q45: 163 | R45: -163
A46: M. | D46: Změna stavu rezerv a opravných položek ve finanční oblasti | J46: 41 | K46: 0 | L46: 0 | M46: 0 | N46: 0 | O46: 0 | P46: 0 | Q46: 0 | R46: 0
A47: X. | D47: Výnosové úroky | J47: 42 | K47: 10 | L47: 4 | M47: 3 | N47: 1 | O47: 8 | P47: 8 | Q47: 10 | R47: 16
A48: N. | D48: Nákladové úroky | J48: 43 | K48: 1369 | L48: 1790 | M48: 1548 | N48: 1119 | O48: 1109 | P48: 1084 | Q48: 961 | R48: 848
A49: XI. | D49: Ostatní finanční výnosy | J49: 44 | K49: 773 | L49: 1228 | M49: 591 | N49: 615 | O49: 257 | P49: 210 | Q49: 1303 | R49: 3323
A50: O. | D50: Ostatní finanční náklady | J50: 45 | K50: 1023 | L50: 1764 | M50: 1016 | N50: 1217 | O50: 1288 | P50: 532 | Q50: 715 | R50: 861
A51: XII. | D51: Převod finančních výnosů | J51: 46 | K51: 0 | L51: 0 | M51: 0 | N51: 0 | O51: 0 | P51: 0 | Q51: 0 | R51: 0
A52: P. | D52: Převod finančních nákladů | J52: 47 | K52: 0 | L52: 0 | M52: 0 | N52: 0 | O52: 0 | P52: 0 | Q52: 0 | R52: 0
A53: * | D53: Finanční výsledek hospodaření | J53: 48 | K53: =K36-K37+K38+K42-K43+K44-K45-K46+K47-K48+K49-K50-K51+K52 -> -1609 | L53: -2322 | M53: -1970 | N53: -1720 | O53: -2132 | P53: -1398 | Q53: -526 | R53: 1793
A55: Q. | D55: Daň z příjmů za běžnou činnost | J55: 49 | K55: =K56+K57 -> 221 | L55: 297 | M55: 422 | N55: 861 | O55: 1674 | P55: 1098 | Q55: 882 | R55: 1158
A56: Q. | C56: 1 | D56: -splatná | J56: 50 | K56: 0 | L56: 0 | M56: 405 | N56: 656 | O56: 1374 | P56: 1061 | Q56: 924 | R56: 1051
A57: Q. | C57: 2 | D57: -odložená | J57: 51 | K57: 221 | L57: 297 | M57: 17 | N57: 205 | O57: 300 | P57: 37 | Q57: -42 | R57: 107
A58: ** | D58: Výsledek hospodaření za běžnou činnost | J58: 52 | K58: =K33+K53-K55 -> 1508 | L58: =L33+L53-L55 -> 1436 | M58: 1718 | N58: 3518 | O58: 5441 | P58: 2914 | Q58: 3133 | R58: 4016
A59: XIII. | D59: Mimořádné výnosy | J59: 53 | K59: 0 | L59: 0 | M59: 0 | N59: 0 | O59: 0 | P59: 0 | Q59: 0 | R59: 0
A60: R. | D60: Mimořádné náklady | J60: 54 | K60: 0 | L60: 0 | M60: 0 | N60: 0 | O60: 0 | P60: 0 | Q60: 0 | R60: 0
A61: S. | D61: Daň z příjmů z mimořádné činnosti | J61: 55 | K61: =K62+K63 -> 0 | L61: 0 | M61: 0 | N61: 0 | O61: 0 | P61: 0 | Q61: 0 | R61: 0
A62: S. | C62: 1 | D62: -splatná | J62: 56 | K62: 0 | L62: 0 | M62: 0 | N62: 0 | O62: 0 | P62: 0 | Q62: 0 | R62: 0
A63: S. | C63: 2 | D63: -odložená | J63: 57 | K63: 0 | L63: 0 | M63: 0 | N63: 0 | O63: 0 | P63: 0 | Q63: 0 | R63: 0
A64: * | D64: Mimořádný výsledek hospodaření | J64: 58 | K64: =K59-K60-K61 -> 0 | L64: 0 | M64: 0 | N64: 0 | O64: 0 | P64: 0 | Q64: 0 | R64: 0
A65: T. | D65: Převod podílu na výsledku hospodaření společníkům (+/-) | J65: 59 | K65: 0 | L65: 0 | M65: 0 | N65: 0 | O65: 0 | P65: 0 | Q65: 0 | R65: 0
A66: *** | D66: Výsledek hospodaření za účetní období (+/-) | J66: 60 | K66: =K58+K64-K65 -> 1508 | L66: 1436 | M66: 1718 | N66: 3518 | O66: 5441 | P66: 2914 | Q66: 3133 | R66: 4016
A67: **** | D67: Výsledek hospodaření před zdaněním (+/-) | J67: 61 | K67: =K33+K53+K59-K60 -> 1729 | L67: =L33+L53+L59-L60 -> 1733 | M67: =M33+M53+M59-M60 -> 2140 | N67: 4379 | O67: 7115 | P67: 4012 | Q67: 4015 | R67: 5174

Sheet Spuštění programu
B2: Program pro finanční analýzu | P2: Návod na obsluhu programu:
P5: 1) Po spuštění programu se otevře hlavní menu, ve kterém lze přepnat mezi listy výkazů a nebo spustit finanční analýzu.
P7: 2) Pro úspěšný průběh finanční analýzy je důležité správně vyplnit příslušné výkazy a to jak část Aktiv, tak i část Pasiv, totéž platí pro výkaz zisků a ztrát, bez takto vyplněných výkazů program nemůže poskytnout správné výsledky ukazatelů.
P10: 3) Při vyplňování výkazů vyplňujte pouze bílá pole, jinak barevně značená pole obsahují vzorce a jsou chráněna proti zápisu tento prvek slouží tomu aby nedošlo ke znehodnocení funkčnosti programu.
P13: 4) Pro snadnější navigování mezi listy, je na každém listu příslušné tlačítko, které vám otevře hlavní menu, nebo menu navigace.
P15: 5) Při vypočtení určitého ukazatele se program přesměruje na příslušný list, ve kterém je tabulka s výsledky.
P17: 6) Pakliže po vypočítání příslušného ukazatele se ve výsledné tabulce objeví hodnota NULL, tak došlo k dělení nulou, to znamená, že položka kterou dělíme má buď hodnotu nula a nebo je špatně vyplněná (nevyplněná vůbec).

Sheet Rozdílové ukazatele
B3: Rozdílové ukazatele
C5: 2007 | D5: 2008 | E5: 2009 | F5: 2010 | G5: 2011 | H5: 2012 | I5: 2013 | J5: 2014
B6: Čisté pohotové prostředky | C6: -91540 | D6: -115629 | E6: -126984 | F6: -132775 | G6: -116783 | H6: -92081 | I6: -104123 | J6: -137423
B7: Čistý pracovní kapitál | C7: 21967 | D7: 25870 | E7: 23688 | F7: 31089 | G7: 45016 | H7: 38563 | I7: 38113 | J7: 33841

Sheet Absolutní ukazatele
B2: Horizontální analýza rozvahy | K2: Vertikální analýza rozvahy
B4: AKTIVA | C4: 07 - 08 | D4: 08 - 09 | E4: 09 - 10 | F4: 10 - 11 | G4: 11 - 12 | H4: 12 - 13 | I4: 13 - 14 | K4: AKTIVA | L4: 2007 | M4: 2008 | N4: 2009 | O4: 2010 | P4: 2011 | Q4: 2012 | R4: 2013 | S4: 2014
B5: AKTIVA CELKEM | C5: 19,2% | D5: 2,2% | E5: 6,2% | F5: -1,9% | G5: -8,4% | H5: 8,7% | I5: 18,1% | K5: AKTIVA CELKEM | L5: 1 | M5: 1 | N5: 1 | O5: 1 | P5: 1 | Q5: 1 | R5: 1 | S5: 1
B6: Dlouhodobý majetek | C6: 1,9% | D6: -3,1% | E6: -2,5% | F6: -4,9% | G6: 26,5% | H6: -12,3% | I6: 27,2% | K6: Dlouhodobý majetek | L6: 31,4% | M6: 26,8% | N6: 25,4% | O6: 23,4% | P6: 22,6% | Q6: 31,3% | R6: 25,2% | S6: 27,2%
B7: Dlouhodobý nehmotný majetek | C7: -26,7% | D7: -58,8% | E7: -6,7% | F7: 81,7% | G7: 91,2% | H7: 14,1% | I7: -21,2% | K7: Dlouhodobý nehmotný majetek | L7: 0,5% | M7: 0,3% | N7: 0,1% | O7: 0,1% | P7: 0,2% | Q7: 0,4% | R7: 0,4% | S7: 0,3%
B8: Dlouhodobý hmotný majetek | C8: 2,5% | D8: -2,6% | E8: -2,6% | F8: -2,8% | G8: 26,8% | H8: -12,6% | I8: 0.28 | K8: Dlouhodobý hmotný majetek | L8: 29,9% | M8: 25,7% | N8: 24,5% | O8: 22,5% | P8: 22,3% | Q8: 30,9% | R8: 24,8% | S8: 26,9%
B9: Dlouhodobý finanční majetek | C9: 0 | D9: 0 | E9: 0 | F9: -81,1% | G9: -1 | H9: NULL | I9: NULL | K9: Dlouhodobý finanční majetek | L9: 0.01 | M9: 0,8% | N9: 0,8% | O9: 0,8% | P9: 0,1% | Q9: 0 | R9: 0 | S9: 0
B10: Oběžná aktiva | C10: 27,1% | D10: 4,2% | E10: 9,3% | F10: -0,7% | G10: -18,7% | H10: 18,4% | I10: 14,7% | K10: Oběžná aktiva | L10: 68,1% | M10: 72,7% | N10: 74,1% | O10: 76,3% | P10: 77,2% | Q10: 68,5% | R10: 74,6% | S10: 72,5%
B11: Zásoby | C11: 29,9% | D11: 13,7% | E11: 8,7% | F11: 61,3% | G11: -47,2% | H11: -3,7% | I11: 104,9% | K11: Zásoby | L11: 10,4% | M11: 11,3% | N11: 12,6% | O11: 12,9% | P11: 21,2% | Q11: 12,2% | R11: 10,8% | S11: 18,8%
B12: Dlouhodobé pohledávky | C12: 4,2% | D12: 36,2% | E12: 18,5% | F12: 0.1 | G12: -6,9% | H12: -7,6% | I12: -23,3% | K12: Dlouhodobé pohledávky | L12: 2,4% | M12: 2,1% | N12: 2,7% | O12: 3,1% | P12: 3,4% | Q12: 3,5% | R12: 0.03 | S12: 1,9%
B13: Krátkodobé pohledávky | C13: 24,6% | D13: 0.04 | E13: 8,3% | F13: -15,4% | G13: -8,6% | H13: 0.13 | I13: 5,7% | K13: Krátkodobé pohledávky | L13: 54,9% | M13: 57,4% | N13: 58,4% | O13: 59,6% | P13: 51,4% | Q13: 51,3% | R13: 53,3% | S13: 47,7%
B14: Finanční majetek | C14: 368,8% | D14: -80,9% | E14: 125,4% | F14: 52,5% | G14: 19,7% | H14: 425,8% | I14: -35,8% | K14: Finanční majetek | L14: 0,5% | M14: 1,9% | N14: 0,4% | O14: 0,8% | P14: 1,2% | Q14: 1,6% | R14: 7,5% | S14: 4,1%
B15: Časové rozlišení | C15: 27,4% | D15: -0,8% | E15: -21,8% | F15: -41,6% | G15: -8,4% | H15: -32,2% | I15: 166,3% | K15: Časové rozlišení | L15: 0,5% | M15: 0,5% | N15: 0,5% | O15: 0,4% | P15: 0,2% | Q15: 0,2% | R15: 0,1% | S15: 0,3%
B16: PASIVA | K16: PASIVA
B17: PASIVA CELKEM | C17: 19,2% | D17: 2,2% | E17: 6,2% | F17: -1,9% | G17: -8,4% | H17: 8,7% | I17: 18,1% | K17: PASIVA CELKEM | L17: 1 | M17: 1 | N17: 1 | O17: 1 | P17: 1 | Q17: 1 | R17: 1 | S17: 1
B18: Vlastní kapitál | C18: 3,3% | D18: 3,9% | E18: 7,6% | F18: 27,2% | G18: 1,5% | H18: 1,3% | I18: 5,9% | K18: Vlastní kapitál | L18: 25,7% | M18: 22,3% | N18: 22,6% | O18: 0.23 | P18: 29,8% | Q18: 0.33 | R18: 30,8% | S18: 27,6%
B19: Základní kapitál | C19: 0 | D19: 0 | E19: 0 | F19: 0 | G19: 0 | H19: 0 | I19: 0 | K19: Základní kapitál | L19: 27,6% | M19: 23,1% | N19: 22,6% | O19: 21,3% | P19: 21,7% | Q19: 23,7% | R19: 21,8% | S19: 18,5%
B20: Kapitálové fondy | C20: NULL | D20: NULL | E20: NULL | F20: NULL | G20: -23,9% | H20: -36,8% | I20: -3,5% | K20: Kapitálové fondy | L20: 0 | M20: 0 | N20: 0 | O20: 0 | P20: 3,8% | Q20: 3,2% | R20: 1,8% | S20: 1,5%
B21: Výsledek hospodaření minulých let | C21: -28,8% | D21: -38,4% | E21: -74,6% | F21: -603,2% | G21: 185,4% | H21: 34,8% | I21: 29,2% | K21: Výsledek hospodaření minulých let | L21: -0.03 | M21: -1,8% | N21: -1,1% | O21: -0,3% | P21: 1,3% | Q21: 4,1% | R21: 5,1% | S21: 5,5%
B22: Výsledek hospodaření běžného ÚO | C22: -4,8% | D22: 19,6% | E22: 104,8% | F22: 54,7% | G22: -46,4% | H22: 7,5% | I22: 28,2% | K22: Výsledek hospodaření běžného ÚO | L22: 0,9% | M22: 0,7% | N22: 0,8% | O22: 1,6% | P22: 2,6% | Q22: 1,5% | R22: 1,5% | S22: 1,6%
B23: Cizí zdroje | C23: 24,3% | D23: 2,3% | E23: 9,4% | F23: -0.1 | G23: -10,4% | H23: 13,7% | I23: 23,7% | K23: Cizí zdroje | L23: 68,5% | M23: 71,4% | N23: 71,4% | O23: 73,6% | P23: 67,5% | Q23: 0.66 | R23: 69,1% | S23: 72,4%
B24: Rezervy | C24: NULL | D24: NULL | E24: NULL | F24: NULL | G24: NULL | H24: NULL | I24: NULL | K24: Rezervy | L24: 0 | M24: 0 | N24: 0 | O24: 0 | P24: 0 | Q24: 0 | R24: 0 | S24: 0
B25: Dlouhodobé závazky | C25: 113,4% | D25: -19,5% | E25: 4,7% | F25: 42,6% | G25: 15,4% | H25: -42,3% | I25: -0.08 | K25: Dlouhodobé závazky | L25: 0.01 | M25: 1,7% | N25: 1,4% | O25: 1,3% | P25: 1,9% | Q25: 2,4% | R25: 1,3% | S25: 0.01
B26: Krátkodobé závazky | C26: 29,4% | D26: 6,9% | E26: 5,3% | F26: -11,2% | G26: -20,3% | H26: 26,3% | I26: 0.23 | K26: Krátkodobé závazky | L26: 0.55 | M26: 59,7% | N26: 62,5% | O26: 61,9% | P26: 0.56 | Q26: 48,8% | R26: 56,7% | S26: 0.59
B27: Bankovní úvěry a výpomoci | C27: -4,8% | D27: -21,8% | E27: 44,2% | F27: -9,6% | G27: 42,3% | H27: -18,5% | I27: 31,4% | K27: Bankovní úvěry a výpomoci | L27: 12,5% | M27: 9,9% | N27: 7,6% | O27: 10,3% | P27: 9,5% | Q27: 14,8% | R27: 11,1% | S27: 12,4%
B28: Časové rozlišení | C28: 29,6% | D28: -4,5% | E28: -38,7% | F28: -20,6% | G28: -66,5% | H28: -81,6% | I28: -83,1% | K28: Časové rozlišení | L28: 5,8% | M28: 6,3% | N28: 5,9% | O28: 3,4% | P28: 2,8% | Q28: 0.01 | R28: 0,2% | S28: 0

Sheet Ukazatele likvidity
B3: Ukazatele likvidity
C5: 2007 | D5: 2008 | E5: 2009 | F5: 2010 | G5: 2011 | H5: 2012 | I5: 2013 | J5: 2014
B6: Okamžitá likvidita | C6: 0.008999999613 | D6: 0.03200000152 | E6: 0.006000000052 | F6: 0.0120000001 | G6: 0.02099999972 | H6: 0.03200000152 | I6: 0.1330000013 | J6: 0.0700000003
B7: Pohotová likvidita | C7: 1.049000025 | D7: 1.02699995 | E7: 0.9840000272 | F7: 1.023000002 | G7: 1 | H7: 1.154999971 | I7: 1.126000047 | J7: 0.9110000134
B8: Běžná likvidita | C8: 1.238000035 | D8: 1.215999961 | E8: 1.184999943 | F8: 1.230999947 | G8: 1.376999974 | H8: 1.404999971 | I8: 1.317000031 | J8: 1.228999972

Sheet Ukazatele zadluženosti
B3: Ukazatele zadluženosti
C5: 2007 | D5: 2008 | E5: 2009 | F5: 2010 | G5: 2011 | H5: 2012 | I5: 2013 | J5: 2014
B6: Celková zadluženost | C6: 68.5 | D6: 71.40000153 | E6: 71.40000153 | F6: 73.59999847 | G6: 67.5 | H6: 66 | I6: 69.09999847 | J6: 72.40000153
B7: Míra samofinancování | C7: 25.70000076 | D7: 22.29999924 | E7: 22.60000038 | F7: 23 | G7: 29.79999924 | H7: 33 | I7: 30.79999924 | J7: 27.60000038
B8: Ukazatel úrokového krytí | C8: 2.400000095 | D8: 2.299999952 | E8: 2.700000048 | F8: 5.5 | G8: 8.300000191 | H8: 5 | I8: 4.699999809 | J8: 4

Sheet Ukazatele rentability
B3: Ukazatele rentability
C5: 2007 | D5: 2008 | E5: 2009 | F5: 2010 | G5: 2011 | H5: 2012 | I5: 2013 | J5: 2014
B6: ROI (Vložený kapitál) | C6: 1.99000001 | D6: 2.029999971 | E6: 2.00999999 | F6: 2.809999943 | G6: 4.340000153 | H6: 2.769999981 | I6: 2.140000105 | J6: 1.350000024
B7: ROA (Aktiva) | C7: 0.8999999762 | D7: 0.7200000286 | E7: 0.8399999738 | F7: 1.620000005 | G7: 2.549999952 | H7: 1.49000001 | I7: 1.480000019 | J7: 1.600000024
B8: ROE (Vlastní kapitál) | C8: 3.49000001 | D8: 3.220000029 | E8: 3.710000038 | F8: 7.059999943 | G8: 8.590000153 | H8: 4.53000021 | I8: 4.800000191 | J8: 5.809999943
B9: ROS (tržby) | C9: 0.6700000167 | D9: 0.5099999905 | E9: 0.5699999928 | F9: 1.49000001 | G9: 2.130000114 | H9: 1.210000038 | I9: 1.360000014 | J9: 1.559999943
B10: ROCE (Dlouhodobé zdroje) | C10: 3.369999886 | D10: 2.99000001 | E10: 3.5 | F10: 6.670000076 | G10: 8.06000042 | H10: 4.21999979 | I10: 4.610000134 | J10: 5.610000134

Sheet Ukazatele aktivity
B3: Ukazatele aktivity
C5: 2007 | D5: 2008 | E5: 2009 | F5: 2010 | G5: 2011 | H5: 2012 | I5: 2013 | J5: 2014
B6: Obrat celkových aktiv | C6: 1.299999952 | D6: 1.399999976 | E6: 1.5 | F6: 1.100000024 | G6: 1.200000048 | H6: 1.200000048 | I6: 1.100000024 | J6: 1 | K6: Ukazatele počtu obrátek [počet obrátek za rok]
B7: Obrat stálých aktiv | C7: 4.300000191 | D7: 5.199999809 | E7: 5.800000191 | F7: 4.699999809 | G7: 5.300000191 | H7: 3.900000095 | I7: 4.300000191 | J7: 3.799999952
B8: Obrat zásob | C8: 13 | D8: 12.39999962 | E8: 11.69999981 | F8: 8.399999619 | G8: 5.699999809 | H8: 10.10000038 | I8: 10.10000038 | J8: 5.5
B9: Doba obratu zásob | C9: 27.79999924 | D9: 29.10000038 | E9: 30.70000076 | F9: 42.59999847 | G9: 63.40000153 | H9: 35.59999847 | I9: 35.79999924 | J9: 65.80000305 | K9: Ukazatele doby obratu [dny]
B10: Doba obratu pohledávek | C10: 153.5 | D10: 152.8000031 | E10: 149.1000061 | F10: 207.1999969 | G10: 164.1999969 | H10: 159.8999939 | I10: 186.1000061 | J10: 174
B11: Doba obratu závazků | C11: 150.1000061 | D11: 158 | E11: 155.6999969 | F11: 209.3999939 | G11: 173.6000061 | H11: 149.5 | I11: 191.6999969 | J11: 210.3999939

Sheet Souhrnné indexy
B3: Souhrnné indexy hodnocení
C5: 2007 | D5: 2008 | E5: 2009 | F5: 2010 | G5: 2011 | H5: 2012 | I5: 2013 | J5: 2014
B6: Altmanův index (Z - skóre) | C6: 1.809999943 | D6: 1.820000052 | E6: 1.870000005 | F6: 1.529999971 | G6: 1.809999943 | H6: 1.840000033 | I6: 1.629999995 | J6: 1.470000029
B7: Index IN 05 | C7: 0.7599999905 | D7: 0.7599999905 | E7: 0.7799999714 | F7: 0.8399999738 | G7: 1.070000052 | H7: 0.8700000048 | I7: 0.8000000119 | J7: 0.7099999785
